bitfinex/quotes_BTCUSD_20260117
["timestamp","ask_amount","ask_price","bid_price","bid_amount"]
[1768625073362,0.05864424,95275.0,95271.0,0.01049637]
[1768625073500,0.01049604,95274.0,95269.0,0.01049659]
[1768625073703,0.01049604,95274.0,95267.0,0.05248401]
[1768625073704,0.01049615,95273.0,95266.0,0.01049692]
[1768625073946,0.01049615,95273.0,95267.0,0.01049681]
[1768625074146,0.01049604,95274.0,95268.0,0.0104967]
[1768625074523,0.06297637,95274.0,95268.0,0.0104967]
[1768625074724,0.01049604,95274.0,95268.0,0.0104967]
[1768625074926,0.01049637,95271.0,95267.0,0.01049681]
[1768625075536,0.05248081,95273.0,95267.0,0.01049681]
[1768625075739,0.01049604,95274.0,95267.0,0.01049681]
[1768625076147,0.05248076,95273.0,95267.0,0.01049681]
[1768625076353,0.01049637,95271.0,95267.0,0.01049681]
[1768625077720,0.00524819,95271.0,95267.0,0.01049681]
[1768625078297,0.00524819,95271.0,95268.0,0.0314851]
[1768625078906,0.01049626,95272.0,95268.0,0.0314851]
[1768625079648,0.01049615,95273.0,95268.0,0.0314851]
[1768625080191,0.01049637,95271.0,95268.0,0.0314851]
[1768625080414,0.06297828,95271.0,95268.0,0.0314851]
[1768625080618,0.06297836,95271.0,95268.0,0.0314851]
[1768625080835,0.06297836,95271.0,95264.0,0.01049714]
[1768625080836,0.0104967,95268.0,95264.0,0.01049714]
[1768625081040,0.01049648,95270.0,95266.0,0.01049692]
[1768625081298,0.01049637,95271.0,95266.0,0.01049692]
[1768625081445,0.00467539,95271.0,95266.0,0.01049692]
[1768625081656,0.01049637,95271.0,95267.0,0.01049681]
[1768625081857,0.01049648,95270.0,95265.0,0.01049703]
[1768625082255,0.01049648,95270.0,95266.0,0.01049692]
[1768625082462,0.01049648,95270.0,95266.0,0.0209934]
[1768625082883,0.01049659,95269.0,95266.0,0.01049648]
[1768625083297,0.01049659,95269.0,95266.0,0.00343831]
[1768625083465,0.01049659,95269.0,95265.0,0.01049703]
[1768625085196,0.05248519,95265.0,95263.0,0.03148533]
[1768625085420,0.10063348,95265.0,95264.0,0.07552486]
[1768625085619,0.10063348,95265.0,95255.0,0.05249061]
[1768625085620,0.05864567,95262.0,95261.0,0.1272]
[1768625085796,0.01049736,95262.0,95261.0,0.1272]
[1768625086571,0.01049681,95267.0,95257.0,0.01049791]
[1768625086572,1e-08,95276.0,95273.0,0.01049615]
[1768625086779,0.0001576,95285.0,95273.0,0.01049615]
[1768625086780,0.0001576,95285.0,95282.0,0.01049516]
[1768625087841,0.01049472,95286.0,95282.0,0.01049516]
[1768625088032,0.0002856,95285.0,95282.0,0.01049516]
[1768625088257,0.00033527,95285.0,95282.0,0.01049516]
[1768625088483,0.00033527,95285.0,95282.0,0.0629709]
[1768625088685,0.00033527,95285.0,95282.0,0.01049516]
[1768625089255,0.00033527,95285.0,95282.0,0.06297095]
[1768625089450,0.00033527,95285.0,95282.0,0.06297051]
[1768625090184,0.00033527,95285.0,95282.0,0.01049516]
[1768625090318,0.00033527,95285.0,95282.0,0.06297085]
[1768625090725,0.00033527,95285.0,95282.0,0.01049516]
[1768625092371,0.0108301,95285.0,95281.0,0.01049527]
[1768625092902,0.01049494,95284.0,95280.0,0.01049538]
[1768625094157,0.01049505,95283.0,95278.0,0.0104956]
[1768625094362,0.06296988,95284.0,95280.0,0.01049538]
[1768625094363,0.05976082,95284.0,95280.0,0.01049538]
[1768625095118,0.04926588,95284.0,95280.0,0.01049538]
[1768625095322,0.05976082,95284.0,95278.0,0.06297351]
[1768625095525,0.05976082,95284.0,95279.0,0.01049549]
[1768625095733,0.05976082,95284.0,95280.0,0.01049538]
[1768625095952,0.05976093,95283.0,95278.0,0.0104956]
[1768625096107,0.05976093,95283.0,95279.0,0.01049549]
[1768625096535,0.01049505,95283.0,95278.0,0.06297331]
[1768625096748,0.04926588,95288.0,95276.0,0.07380474]
[1768625096749,0.01049417,95291.0,95286.0,0.01049472]
[1768625096942,0.01049406,95292.0,95287.0,0.01049461]
[1768625097142,0.12716,95291.0,95287.0,0.0629675]
[1768625098167,0.12716,95291.0,95288.0,0.0104945]
[1768625098808,0.13765417,95291.0,95287.0,0.01049461]
[1768625100662,0.04926588,95280.0,95275.0,0.03148077]
[1768625100860,0.05976159,95277.0,95271.0,0.01049637]
[1768625101014,0.0597617,95276.0,95272.0,0.01049626]
[1768625101217,0.0597617,95276.0,95271.0,0.01049637]
[1768625101450,0.0597617,95276.0,95269.0,0.01049659]
[1768625101451,0.12716,95279.0,95273.0,0.01049615]
[1768625101609,0.01049461,95287.0,95282.0,0.01049516]
[1768625101807,0.15864391,95286.0,95282.0,0.01049516]
[1768625102005,0.15864391,95286.0,95283.0,0.01049505]
[1768625102251,0.03148391,95286.0,95283.0,0.01049505]
[1768625102451,0.12716,95287.0,95284.0,0.01049494]
[1768625103208,0.12716,95287.0,95285.0,0.05247412]
[1768625103829,0.12716,95287.0,95284.0,0.06296947]
[1768625104067,0.12716,95287.0,95284.0,0.01049494]
[1768625104490,0.04926588,95286.0,95275.0,0.01049593]
[1768625104712,0.12716,95287.0,95275.0,0.01049593]
[1768625104713,0.04926588,95285.0,95275.0,0.01049593]
[1768625104889,0.0104956,95278.0,95274.0,0.01049604]
[1768625105558,0.01049549,95279.0,95274.0,0.01049604]
[1768625106632,0.0104956,95278.0,95271.0,0.01049637]
[1768625107105,0.01049571,95277.0,95272.0,0.06297721]
[1768625107301,0.0104956,95278.0,95274.0,0.01049604]
[1768625107735,0.01049571,95277.0,95273.0,0.01049615]
[1768625109979,0.01049582,95276.0,95272.0,0.01049626]
[1768625113127,0.01049571,95277.0,95273.0,0.01049615]
[1768625115464,0.0104956,95278.0,95274.0,0.01049604]
[1768625115650,0.0104956,95278.0,95273.0,0.06297686]
[1768625115651,0.01049571,95277.0,95273.0,0.01049615]
[1768625118818,0.0104956,95278.0,95273.0,0.01049615]
[1768625119168,0.01049571,95277.0,95273.0,0.01049615]
[1768625121255,0.0104956,95278.0,95273.0,0.01049615]
[1768625122078,0.0104956,95278.0,95274.0,0.01049604]
[1768625122291,0.01049571,95277.0,95273.0,0.01049615]
[1768625123594,0.01049582,95276.0,95267.0,0.01049681]
[1768625123740,0.05248021,95275.0,95269.0,0.01049659]
[1768625123942,0.01049604,95274.0,95270.0,0.01049648]
[1768625126592,0.01049593,95275.0,95270.0,0.01049648]
[1768625127179,0.01049593,95275.0,95271.0,0.01049637]
[1768625129796,0.01049615,95273.0,95269.0,0.01049659]
[1768625129995,0.01049604,95274.0,95269.0,0.01049659]
[1768625130162,0.01049593,95275.0,95271.0,0.01049637]
[1768625131007,0.01049604,95274.0,95270.0,0.01049648]
[1768625131214,0.01049637,95271.0,95265.0,0.01049703]
[1768625131412,0.0104967,95268.0,95265.0,4.73e-05]
[1768625131987,0.01049615,95273.0,95265.0,0.01054433]
[1768625132334,0.01049648,95270.0,95265.0,0.01054433]
[1768625132537,0.01049648,95270.0,95266.0,0.01049692]
[1768625133275,0.01049637,95271.0,95267.0,0.01049681]
[1768625135470,0.01049626,95272.0,95268.0,0.0104967]
[1768625135769,0.01049637,95271.0,95267.0,0.01049681]
[1768625137974,0.01049648,95270.0,95266.0,0.01049692]
[1768625138229,0.01049626,95272.0,95267.0,0.01049681]
[1768625138390,0.01049626,95272.0,95268.0,0.0104967]
[1768625140659,0.01049637,95271.0,95266.0,0.01049692]
[1768625141259,0.01049637,95271.0,95267.0,0.01049681]
[1768625141462,0.01049626,95272.0,95268.0,0.0104967]
[1768625141667,0.01049626,95272.0,95268.0,0.0093596]
[1768625141894,0.01049626,95272.0,95267.0,0.01049681]
[1768625142087,0.01049615,95273.0,95269.0,0.01049659]
[1768625142527,0.01049626,95272.0,95267.0,0.01049681]
[1768625142953,0.01049615,95273.0,95268.0,0.0104967]
[1768625143195,0.01049615,95273.0,95268.0,0.01045129]
[1768625143572,0.01049626,95272.0,95268.0,0.01045129]
[1768625143874,0.01049637,95271.0,95267.0,0.0104514]
[1768625144373,0.01049615,95273.0,95268.0,0.0104967]
[1768625144803,0.01049615,95273.0,95269.0,0.01049659]
[1768625145928,0.01049626,95272.0,95268.0,0.0104967]
[1768625150244,0.01049648,95270.0,95266.0,0.01049692]
[1768625150435,0.01049648,95270.0,95266.0,0.01045151]
[1768625150643,0.01049615,95273.0,95267.0,0.01049681]
[1768625150869,0.01049626,95272.0,95267.0,0.01049681]
[1768625151248,0.06297741,95273.0,95268.0,0.0104967]
[1768625151249,0.01049615,95273.0,95268.0,0.0104967]
[1768625152231,0.01049615,95273.0,95269.0,0.01049659]
[1768625154046,0.01049604,95274.0,95269.0,0.01049659]
[1768625154220,0.01049615,95273.0,95269.0,0.01049659]
[1768625154428,0.05247977,95275.0,95269.0,0.01049659]
[1768625154429,0.01049593,95275.0,95269.0,0.01049659]
[1768625154632,0.01049593,95275.0,95270.0,0.01049648]
[1768625154826,0.01049593,95275.0,95270.0,0.06297881]
[1768625155029,0.01049604,95274.0,95270.0,0.01049648]
[1768625155327,0.01049593,95275.0,95271.0,0.01049637]
[1768625155630,0.01049593,95275.0,95271.0,0.01045096]
[1768625157447,0.05963326,95274.0,95269.0,0.01049659]
[1768625157651,0.05963326,95274.0,95263.0,0.20994459]
[1768625157652,0.0596337,95270.0,95264.0,0.06298251]
[1768625157849,0.01049659,95269.0,95265.0,0.01054433]
[1768625158031,0.0104967,95268.0,95265.0,4.73e-05]
[1768625158579,0.01049659,95269.0,95265.0,0.01054433]
[1768625159730,0.01049659,95269.0,95265.0,0.01049892]
[1768625160900,0.0596337,95270.0,95266.0,0.01049692]
[1768625161129,0.01049637,95271.0,95267.0,0.01049681]
[1768625161446,0.01049637,95271.0,95266.0,0.01049692]
[1768625161447,0.01049648,95270.0,95266.0,0.01049692]
[1768625161647,0.01049637,95271.0,95266.0,0.01049692]
[1768625165245,0.01049637,95271.0,95266.0,0.06298145]
[1768625165886,0.01049637,95271.0,95267.0,0.01049681]
[1768625168909,0.01049637,95271.0,95266.0,0.01049692]
[1768625169143,0.01049648,95270.0,95266.0,0.01049692]
[1768625170198,0.0104967,95268.0,95265.0,1.89e-06]
[1768625171062,0.01049659,95269.0,95265.0,0.01049892]
[1768625171288,0.01049659,95269.0,95265.0,0.01045351]
[1768625172131,0.01049659,95269.0,95265.0,0.01049703]
[1768625172347,0.01049659,95269.0,95264.0,0.01049714]
[1768625172771,0.01049659,95269.0,95265.0,0.01049703]
[1768625173327,0.01049648,95270.0,95266.0,0.01049692]
[1768625173529,0.01049648,95270.0,95266.0,0.01045152]
[1768625174342,0.00851836,95270.0,95266.0,0.01045152]
[1768625174488,0.00812262,95270.0,95266.0,0.01045152]
[1768625174701,0.01049637,95271.0,95267.0,0.01049681]
[1768625175323,0.01049648,95270.0,95266.0,0.01045152]
[1768625176903,0.01049659,95269.0,95265.0,0.01049703]
[1768625177104,0.01010083,95269.0,95265.0,0.01049703]
[1768625179600,0.01010083,95269.0,95265.0,0.01045163]
[1768625181820,0.01010083,95269.0,95265.0,0.01040623]
[1768625182691,0.01049648,95270.0,95266.0,0.01049692]
[1768625183099,0.01049659,95269.0,95265.0,0.01040623]
[1768625183398,0.01049648,95270.0,95266.0,0.01049692]
[1768625185947,0.01010073,95270.0,95266.0,0.01049692]
[1768625187104,0.01049626,95272.0,95267.0,0.05248358]
[1768625187326,4.963e-05,95272.0,95271.0,0.06297815]
[1768625187527,0.01049549,95279.0,95272.0,0.05248131]
[1768625187660,0.01049549,95279.0,95275.0,0.01049593]
[1768625187867,0.01049527,95281.0,95275.0,0.01049593]
[1768625187868,0.01049527,95281.0,95276.0,0.01049582]
[1768625188222,0.01049505,95283.0,95278.0,0.0104956]
[1768625188350,0.01054469,95283.0,95278.0,0.0104956]
[1768625188555,4.964e-05,95283.0,95280.0,0.01049538]
[1768625188992,0.01054469,95283.0,95279.0,0.01049549]
[1768625192579,4.964e-05,95283.0,95280.0,0.01049538]
[1768625192979,0.01054469,95283.0,95279.0,0.01049549]
[1768625194388,0.01054469,95283.0,95279.0,0.01045009]
[1768625194919,0.01049516,95282.0,95277.0,0.01049571]
[1768625195330,0.01049538,95280.0,95276.0,0.01049582]
[1768625199646,0.01049549,95279.0,95274.0,0.06297614]
[1768625199851,0.0104956,95278.0,95272.0,0.01049626]
[1768625200147,0.01049571,95277.0,95273.0,0.01049615]
[1768625200512,0.01049604,95274.0,95270.0,0.01049648]
[1768625200725,0.06297539,95276.0,95270.0,0.01049648]
[1768625200927,0.06297539,95276.0,95271.0,0.01049637]
[1768625201252,0.01049593,95275.0,95271.0,0.01049637]
[1768625201502,0.01049593,95275.0,95271.0,0.01045097]
[1768625201848,0.01049593,95275.0,95270.0,0.01049648]
[1768625202595,0.01049582,95276.0,95271.0,0.06297823]
[1768625202810,0.01049582,95276.0,95272.0,0.01049626]
[1768625206411,0.06297378,95278.0,95273.0,0.01049615]
[1768625206412,0.01049571,95277.0,95273.0,0.01049615]
[1768625207624,0.01049582,95276.0,95272.0,0.01049626]
[1768625207995,0.01049571,95277.0,95273.0,0.01049615]
[1768625208409,0.01049582,95276.0,95272.0,0.01049626]
[1768625209339,0.01049571,95277.0,95273.0,0.01049615]
[1768625211991,0.0104956,95278.0,95273.0,0.06297686]
[1768625212198,0.01049571,95277.0,95273.0,0.01049615]
[1768625212431,0.0104956,95278.0,95274.0,0.01049604]
[1768625214947,0.01049571,95277.0,95272.0,0.01049626]
[1768625215195,0.0104956,95278.0,95273.0,0.01049615]
[1768625215343,0.0104956,95278.0,95274.0,0.01049604]
[1768625215550,0.0104956,95278.0,95274.0,0.01045064]
[1768625216236,0.01049571,95277.0,95273.0,0.01049615]
[1768625216431,0.0104956,95278.0,95274.0,0.01049604]
[1768625217189,0.01049549,95279.0,95275.0,0.01049593]
[1768625217837,0.01049549,95279.0,95276.0,0.01049582]
[1768625218044,0.01049549,95279.0,95276.0,0.01045043]
[1768625218258,0.01049538,95280.0,95276.0,0.01045043]
[1768625218706,0.01049516,95282.0,95277.0,0.01049571]
[1768625219175,4.964e-05,95283.0,95279.0,0.01049549]
[1768625219341,4.964e-05,95283.0,95278.0,0.04802791]
[1768625219967,4.964e-05,95283.0,95277.0,0.01049571]
[1768625220124,4.964e-05,95283.0,95279.0,0.05247709]
[1768625220530,4.964e-05,95283.0,95278.0,0.05247781]
[1768625220904,4.964e-05,95283.0,95280.0,0.01049538]
[1768625221225,0.04960006,95283.0,95280.0,0.01049538]
[1768625221597,0.04960006,95283.0,95279.0,0.01049549]
[1768625221798,0.01049516,95282.0,95277.0,0.01049571]
[1768625222203,0.06297132,95282.0,95277.0,0.01049571]
[1768625222456,0.01049527,95281.0,95276.0,0.01045043]
[1768625223059,0.06297178,95281.0,95276.0,0.01045043]
[1768625223260,0.01049516,95282.0,95278.0,0.0104956]
[1768625223434,0.01049527,95281.0,95276.0,0.01045043]
[1768625223974,0.01049527,95281.0,95276.0,0.01040504]
[1768625224292,0.01049516,95282.0,95277.0,0.01049571]
[1768625224453,4.964e-05,95283.0,95279.0,0.01049549]
[1768625224631,0.01054469,95283.0,95279.0,0.01049549]
[1768625225883,4.964e-05,95283.0,95280.0,0.01049538]
[1768625227308,4.964e-05,95283.0,95281.0,0.05247635]
[1768625227888,4.964e-05,95283.0,95282.0,0.0524758]
[1768625229634,4.964e-05,95283.0,95281.0,0.05247635]
[1768625229635,4.964e-05,95283.0,95281.0,0.05247629]
[1768625230057,4.964e-05,95283.0,95280.0,0.01049538]
[1768625230256,4.964e-05,95283.0,95281.0,0.05247624]
[1768625231053,4.964e-05,95283.0,95280.0,0.01049538]
[1768625231453,4.964e-05,95283.0,95281.0,0.05247626]
[1768625231641,4.964e-05,95283.0,95280.0,0.01049538]
[1768625231642,4.964e-05,95283.0,95280.0,0.06297177]
[1768625231841,4.964e-05,95283.0,95281.0,0.05247632]
[1768625232482,4.964e-05,95283.0,95282.0,0.0524758]
[1768625232683,4.964e-05,95283.0,95282.0,0.05238502]
[1768625233661,1e-08,95285.0,95284.0,0.0524747]
[1768625233862,1e-08,95285.0,95283.0,0.05247482]
[1768625234780,1e-08,95285.0,95284.0,0.0524747]
[1768625238960,1e-08,95285.0,95284.0,0.05242931]
[1768625253859,1e-08,95285.0,95284.0,0.05238392]
[1768625259203,1e-08,95285.0,95279.0,0.01049549]
[1768625259204,0.04733676,95282.0,95279.0,1.1e-07]
[1768625259709,0.06297075,95283.0,95279.0,1.1e-07]
[1768625260342,0.01049516,95282.0,95279.0,1.1e-07]
[1768625261564,0.01049505,95283.0,95279.0,0.0104956]
[1768625261792,0.01049505,95283.0,95279.0,0.01045021]
[1768625262736,0.01049505,95283.0,95280.0,0.01049538]
[1768625263176,0.01049505,95283.0,95279.0,0.01045021]
[1768625263680,1e-08,95285.0,95280.0,0.01049538]
[1768625263831,1e-08,95285.0,95280.0,0.0629719]
[1768625264264,1e-08,95285.0,95281.0,0.05247633]
[1768625265270,1e-08,95285.0,95281.0,0.0629716]
[1768625265480,1e-08,95285.0,95281.0,0.01049527]
[1768625266887,1e-08,95285.0,95282.0,0.01049516]
[1768625268301,1e-08,95285.0,95282.0,0.06292548]
[1768625269053,1e-08,95285.0,95282.0,0.01044977]
[1768625275106,1e-08,95285.0,95282.0,0.06292547]
[1768625275662,1e-08,95285.0,95282.0,0.01044977]
[1768625277008,0.0104935,95297.0,95290.0,0.01049428]
[1768625277191,0.01049372,95295.0,95291.0,0.01049417]
[1768625277393,0.01049372,95295.0,95292.0,0.01049406]
[1768625277571,0.0489426,95296.0,95292.0,0.06296435]
[1768625277771,0.0489426,95296.0,95292.0,0.01049406]
[1768625278181,5.46e-05,95297.0,95294.0,0.01049384]
[1768625278437,5.46e-05,95297.0,95294.0,0.0629629]
[1768625278658,5.46e-05,95297.0,95295.0,0.05246845]
[1768625279714,5.46e-05,95297.0,95296.0,0.05246809]
[1768625279919,5.46e-05,95297.0,95294.0,0.0629629]
[1768625280742,0.01049284,95303.0,95298.0,0.01049339]
[1768625280986,0.01049295,95302.0,95297.0,0.0104935]
[1768625281882,0.01049295,95302.0,95298.0,0.01049339]
[1768625282388,0.01049284,95303.0,95299.0,0.01049328]
[1768625282750,0.01065103,95304.0,95299.0,0.06295969]
[1768625282948,0.01065103,95304.0,95299.0,0.01049328]
[1768625283752,0.01049284,95303.0,95299.0,0.01049328]
[1768625284031,0.01065103,95304.0,95300.0,0.01049317]
[1768625284200,0.01049284,95303.0,95299.0,0.01049328]
[1768625284804,0.01049295,95302.0,95298.0,0.01049339]
[1768625285614,0.01049306,95301.0,95297.0,0.0104935]
[1768625285819,0.01049317,95300.0,95296.0,0.01049361]
[1768625286646,0.0104935,95297.0,95293.0,0.01049395]
[1768625286795,0.01049328,95299.0,95294.0,0.06296282]
[1768625287006,0.01049339,95298.0,95294.0,0.01049384]
[1768625287206,0.01049328,95299.0,95295.0,0.01049372]
[1768625287736,0.0104935,95297.0,95291.0,0.01049417]
[1768625287887,0.05246815,95296.0,95291.0,0.01049417]
[1768625288453,0.01049384,95294.0,95289.0,0.06296626]
[1768625288659,0.01049384,95294.0,95290.0,0.01049428]
[1768625289703,0.01049372,95295.0,95291.0,0.01049417]
[1768625290630,0.01049361,95296.0,95291.0,0.01049417]
[1768625291297,0.0104935,95297.0,95292.0,0.01049406]
[1768625292255,0.01049361,95296.0,95292.0,0.01049406]
[1768625292619,0.01049372,95295.0,95291.0,0.01049417]
[1768625294816,0.01049361,95296.0,95292.0,0.01049406]
[1768625295522,0.06296042,95298.0,95293.0,0.01049395]
[1768625296957,0.01049361,95296.0,95293.0,0.01049395]
[1768625297300,0.01049361,95296.0,95292.0,0.01049406]
[1768625299242,0.01049339,95298.0,95292.0,0.01049406]
[1768625299629,0.06296084,95298.0,95292.0,0.01049406]
[1768625299868,0.0104935,95297.0,95293.0,0.01049395]
[1768625303047,0.01049361,95296.0,95292.0,0.01049406]
[1768625304415,0.0104935,95297.0,95292.0,0.06296431]
[1768625304820,0.0104935,95297.0,95293.0,0.01049395]
[1768625305018,0.0524657,95301.0,95294.0,0.0524692]
[1768625305603,0.01049328,95299.0,95295.0,0.01049372]
[1768625305739,0.01049328,95299.0,95295.0,0.01044833]
[1768625306385,0.05592813,95300.0,95296.0,0.01049361]
[1768625309639,0.01065103,95304.0,95280.0,0.31709213]
[1768625309640,0.05246945,95294.0,95280.0,0.31709213]
[1768625309839,0.05246945,95294.0,95287.0,0.17968719]
[1768625310043,0.0559288,95294.0,95289.0,0.01049439]
[1768625310333,0.0559288,95294.0,95288.0,0.0104945]
[1768625310468,0.10839808,95294.0,95288.0,0.0104945]
[1768625310673,0.01049395,95293.0,95288.0,0.06296695]
[1768625312148,0.0559288,95294.0,95290.0,0.01049428]
[1768625312293,0.0559288,95294.0,95288.0,0.06296695]
[1768625312498,0.01049395,95293.0,95289.0,0.01049439]
[1768625313057,0.01049395,95293.0,95289.0,0.010449]
[1768625314048,0.0559288,95294.0,95290.0,0.01049428]
[1768625314249,0.05696692,95290.0,95279.0,0.01049549]
[1768625314522,0.05247415,95285.0,95284.0,0.12764555]
[1768625314722,0.09894638,95286.0,95284.0,0.12764555]
[1768625314924,0.06296776,95287.0,95284.0,0.12764555]
[1768625315079,0.0104945,95288.0,95284.0,0.12764555]
[1768625316243,0.0104945,95288.0,95284.0,0.13814049]
[1768625317096,0.01049417,95291.0,95286.0,0.01049472]
[1768625317419,0.01049417,95291.0,95287.0,0.01049461]
[1768625318802,0.04647264,95292.0,95288.0,0.0104945]
[1768625319013,0.04647264,95292.0,95288.0,0.01044911]
[1768625320054,0.0569667,95292.0,95288.0,0.01044911]
[1768625320893,0.0569667,95292.0,95286.0,0.01049472]
[1768625320894,0.01049428,95290.0,95286.0,0.01049472]
[1768625323791,0.1094374,95292.0,95287.0,0.01049461]
[1768625324129,0.0569667,95292.0,95288.0,0.0104945]
[1768625326327,0.0569667,95292.0,95287.0,0.01049461]
[1768625326715,0.0569667,95292.0,95288.0,0.0104945]
[1768625330005,0.01049417,95291.0,95287.0,0.01049461]
[1768625332761,0.01049395,95293.0,95287.0,0.01049461]
[1768625332960,0.01049406,95292.0,95288.0,0.0104945]
[1768625334249,0.01049417,95291.0,95287.0,0.01049461]
[1768625334681,0.01049406,95292.0,95288.0,0.0104945]
[1768625335204,0.01049395,95293.0,95289.0,0.01049439]
[1768625336186,0.01049384,95294.0,95290.0,0.01049428]
[1768625336645,0.01049384,95294.0,95289.0,0.01049439]
[1768625336836,0.01049395,95293.0,95289.0,0.01049439]
[1768625339493,0.01049384,95294.0,95290.0,0.01049428]
[1768625340066,0.01049328,95299.0,95292.0,0.01049406]
[1768625340222,0.0104935,95297.0,95293.0,0.01049395]
[1768625340422,0.0104935,95297.0,95292.0,0.01049406]
[1768625340423,0.01049361,95296.0,95292.0,0.01049406]
[1768625341367,0.01049328,95299.0,95292.0,0.01049406]
[1768625342317,0.01049339,95298.0,95294.0,0.01049384]
[1768625344154,0.01049328,95299.0,95295.0,0.01049372]
[1768625344554,0.01049339,95298.0,95293.0,0.01049395]
[1768625345789,0.06296052,95298.0,95293.0,0.01049395]
[1768625346205,0.0104935,95297.0,95293.0,0.01049395]
[1768625347149,0.0001583,95304.0,95291.0,0.04877628]
[1768625347389,0.01049295,95302.0,95297.0,0.0104935]
[1768625347805,0.01049317,95300.0,95296.0,0.01049361]
[1768625348004,0.01049317,95300.0,95294.0,0.01049384]
[1768625348238,0.0104935,95297.0,95292.0,0.01049406]
[1768625348424,0.01049361,95296.0,95292.0,0.01049406]
[1768625349335,0.0104935,95297.0,95293.0,0.01049395]
[1768625354772,0.01049339,95298.0,95294.0,0.01049384]
[1768625356574,0.01049317,95300.0,95295.0,0.01049372]
[1768625357175,0.01049317,95300.0,95295.0,0.06296227]
[1768625358243,0.01049328,95299.0,95295.0,0.01049372]
[1768625360215,0.01049339,95298.0,95294.0,0.01049384]
[1768625361341,0.01049328,95299.0,95295.0,0.01049372]
[1768625372409,0.01049339,95298.0,95294.0,0.01049384]
[1768625373464,0.01049328,95299.0,95294.0,0.06296296]
[1768625375137,0.01049339,95298.0,95294.0,0.01049384]
[1768625377001,0.0104935,95297.0,95294.0,0.01049384]
[1768625377209,0.01049339,95298.0,95294.0,0.01049384]
[1768625380194,0.01049328,95299.0,95295.0,0.01049372]
[1768625381067,0.01049317,95300.0,95296.0,0.01049361]
[1768625381278,0.01049306,95301.0,95296.0,0.06296152]
[1768625381493,0.01049306,95301.0,95297.0,0.0104935]
[1768625382901,0.06295719,95303.0,95298.0,0.01049339]
[1768625384381,0.01049284,95303.0,95298.0,0.01049339]
[1768625385006,0.05808814,95302.0,95298.0,0.01049339]
[1768625385414,0.01049306,95301.0,95297.0,0.0104935]
[1768625385627,0.05808814,95302.0,95297.0,0.0104935]
[1768625385781,0.01049306,95301.0,95297.0,0.0104935]
[1768625385992,0.01049317,95300.0,95295.0,0.01049372]
[1768625386188,0.06295926,95300.0,95295.0,0.01049372]
[1768625387163,0.01049317,95300.0,95295.0,0.06296222]
[1768625388226,0.01049317,95300.0,95295.0,0.01049372]
[1768625389455,0.01049328,95299.0,95295.0,0.01049372]
[1768625389616,0.01049317,95300.0,95295.0,0.01049372]
[1768625389811,0.01049328,95299.0,95295.0,0.01049372]
[1768625392607,0.01049317,95300.0,95296.0,0.01049361]
[1768625393036,0.01049328,95299.0,95295.0,0.01049372]
[1768625393231,0.01049306,95301.0,95296.0,0.01049361]
[1768625393571,0.01049306,95301.0,95296.0,0.06296132]
[1768625394139,0.05808814,95302.0,95297.0,0.06296087]
[1768625394883,0.04759519,95302.0,95299.0,0.01049328]
[1768625396184,0.01065103,95304.0,95299.0,0.01049328]
[1768625396603,0.01069832,95304.0,95299.0,0.01049328]
[1768625398016,0.01049284,95303.0,95299.0,0.01049328]
[1768625403655,0.00549284,95303.0,95299.0,0.01049328]
[1768625403860,0.01069832,95304.0,95300.0,0.01049317]
[1768625407374,0.01049284,95303.0,95299.0,0.01049328]
[1768625410209,0.01069832,95304.0,95300.0,0.01049317]
[1768625420108,0.00020559,95304.0,95301.0,0.01049306]
[1768625424269,0.00020559,95304.0,95301.0,0.06295835]
[1768625424902,0.00020559,95304.0,95302.0,0.0524643]
[1768625426299,0.00020559,95304.0,95301.0,0.06295835]
[1768625430699,0.00020559,95304.0,95301.0,0.01049306]
[1768625438188,0.00020559,95304.0,95301.0,0.0629584]
[1768625441526,0.00020559,95304.0,95302.0,0.0524647]
[1768625448302,0.00020559,95304.0,95302.0,0.05246428]
[1768625450848,0.00020559,95304.0,95301.0,0.01049306]
[1768625451156,0.00020559,95304.0,95301.0,0.06295822]
[1768625451591,0.00020559,95304.0,95302.0,0.05246469]
[1768625457001,0.00020559,95304.0,95302.0,0.05246479]
[1768625462658,0.00020559,95304.0,95301.0,0.06295826]
[1768625463224,0.00020559,95304.0,95303.0,0.05246424]
[1768625463423,0.00020559,95304.0,95301.0,0.01049306]
[1768625464033,0.00020559,95304.0,95302.0,0.05246434]
[1768625465578,0.00020559,95304.0,95303.0,0.05246424]
[1768625465778,0.00020559,95304.0,95302.0,0.05246466]
[1768625465958,0.00020559,95304.0,95303.0,0.05246424]
[1768625468751,0.00020559,95304.0,95301.0,0.06295809]
[1768625468944,0.00020559,95304.0,95302.0,0.05246468]
[1768625469553,0.00020559,95304.0,95303.0,0.05246424]
[1768625470742,0.00020559,95304.0,95302.0,0.05246473]
[1768625471721,0.00020559,95304.0,95302.0,0.05246479]
[1768625472357,0.00020559,95304.0,95303.0,0.05246424]
[1768625473095,0.00020559,95304.0,95302.0,0.05246434]
[1768625473670,0.00020559,95304.0,95303.0,0.05246424]
[1768625474559,0.00020559,95304.0,95302.0,0.05246434]
[1768625477090,0.00020559,95304.0,95301.0,0.01049306]
[1768625477485,0.00020559,95304.0,95302.0,0.05246435]
[1768625478017,0.00020559,95304.0,95303.0,0.05246424]
[1768625480353,0.00020559,95304.0,95301.0,0.06295786]
[1768625480589,0.00020559,95304.0,95301.0,0.01049306]
[1768625480804,0.00020559,95304.0,95301.0,0.06295795]
[1768625481601,0.00020559,95304.0,95302.0,0.05246438]
[1768625481807,0.00020559,95304.0,95301.0,0.01049306]
[1768625482008,0.00020559,95304.0,95302.0,0.05246479]
[1768625482797,0.00020559,95304.0,95302.0,0.05246464]
[1768625483379,0.00020559,95304.0,95302.0,0.05246475]
[1768625483603,0.00020559,95304.0,95303.0,0.05246424]
[1768625483984,0.00020559,95304.0,95302.0,0.05246475]
[1768625485007,0.00020559,95304.0,95303.0,0.05246424]
[1768625485222,0.00020559,95304.0,95301.0,0.01049306]
[1768625486288,0.00020559,95304.0,95302.0,0.05246461]
[1768625487995,0.00020559,95304.0,95301.0,0.06295821]
[1768625489698,0.00020559,95304.0,95302.0,0.05246462]
[1768625490600,0.00020559,95304.0,95303.0,0.05246424]
[1768625494230,0.00020559,95304.0,95302.0,0.05246461]
[1768625494435,0.00020559,95304.0,95301.0,0.01049306]
[1768625494850,0.00020559,95304.0,95301.0,0.06295832]
[1768625495591,0.00020559,95304.0,95302.0,0.05246478]
[1768625496626,0.00020559,95304.0,95301.0,0.01049306]
[1768625497136,0.00020559,95304.0,95301.0,0.06295829]
[1768625499415,0.00020559,95304.0,95301.0,0.01049306]
[1768625499637,0.00020559,95304.0,95300.0,0.01049317]
[1768625499842,0.01069832,95304.0,95300.0,0.01044777]
[1768625500242,0.00020559,95304.0,95301.0,0.01049306]
[1768625503880,0.00020559,95304.0,95301.0,0.06295805]
[1768625504727,0.00020559,95304.0,95301.0,0.01049306]
[1768625505229,0.00020559,95304.0,95301.0,0.01044766]
[1768625505866,0.00020559,95304.0,95301.0,0.06291287]
[1768625506220,0.0108924,95307.0,95301.0,0.06291287]
[1768625506221,0.06335487,95307.0,95302.0,0.01049295]
[1768625506783,0.04663524,95304.0,95300.0,0.01049317]
[1768625506981,0.04663524,95304.0,95301.0,0.01049306]